bitfinex-derivatives/quotes_ETHF0:USTF0_20240920
["timestamp","ask_amount","ask_price","bid_price","bid_amount"]
[1726794911385,0.40937,2442.2,2441.9,0.4094]
[1726794911693,7.47215,2442.3,2441.8,0.7892]
[1726794911987,7.0628,2442.3,2441.8,0.7892]
[1726794912397,0.40936,2442.2,2441.9,0.40941]
[1726794912585,0.8027,2442.5,2442.2,0.40936]
[1726794912780,0.8027,2442.5,2442.3,0.40934]
[1726794912989,1.21202,2442.5,2442.2,0.40935]
[1726794913299,3.2078,2442.6,2442.5,0.40931]
[1726794914297,3.2078,2442.6,2442.5,4.50371]
[1726794914593,0.8116,2443.0,2442.7,0.40926]
[1726794914793,3.19,2442.8,2442.4,0.8224]
[1726794914996,3.59926,2442.8,2442.4,0.8224]
[1726794915187,0.40929,2442.7,2442.4,1.23172]
[1726794915897,3.59927,2442.8,2442.5,0.40931]
[1726794916586,0.40927,2442.8,2442.5,0.40931]
[1726794916784,3.2078,2442.9,2442.4,1.23171]
[1726794916785,0.40928,2442.7,2442.4,1.23171]
[1726794916980,0.40928,2442.7,2442.5,0.40931]
[1726794917186,0.40928,2442.7,2442.4,1.23172]
[1726794917489,0.40928,2442.7,2442.5,0.40931]
[1726794917691,0.40927,2442.8,2442.4,0.8224]
[1726794917893,3.19,2442.8,2442.3,0.40934]
[1726794918194,0.40929,2442.6,2442.2,0.4146]
[1726794918394,3.19,2442.8,2442.4,0.40932]
[1726794918395,0.4261,2442.5,2442.4,0.40932]
[1726794920490,0.4261,2442.5,2442.3,0.40933]
[1726794920701,0.4261,2442.5,2441.6,6.3978]
[1726794920702,0.40937,2442.2,2441.6,6.3978]
[1726794920999,0.40939,2442.1,2441.9,0.4094]
[1726794921185,3.19,2442.2,2441.9,0.4094]
[1726794921381,3.2078,2442.3,2441.8,3.19]
[1726794921582,3.2078,2442.3,2442.1,0.40936]
[1726794921789,3.2078,2442.3,2442.2,0.40936]
[1726794922691,0.4136,2442.4,2442.2,0.40936]
[1726794922890,0.82293,2442.4,2442.2,0.40936]
[1726794923084,0.4136,2442.4,2442.2,0.40936]
[1726794923292,3.6339,2442.5,2441.9,3.2078]
[1726794923592,3.6339,2442.5,2442.3,0.40933]
[1726794923989,3.6339,2442.5,2442.0,0.4017]
[1726794924191,0.4136,2442.7,2442.5,0.40929]
[1726794924391,0.4136,2442.7,2442.5,0.4093]
[1726794924590,0.4136,2442.7,2442.1,4.21342]
[1726794924591,0.4136,2442.7,2442.6,0.40929]
[1726794924792,0.4136,2442.7,2442.5,0.4093]
[1726794925093,0.82288,2442.7,2442.4,0.40932]
[1726794925998,0.4136,2442.7,2442.5,0.4093]
[1726794926597,0.82288,2442.7,2442.4,0.40932]
[1726794926797,0.82288,2442.7,2442.3,0.40934]
[1726794926798,0.4093,2442.6,2442.3,0.40934]
[1726794926993,0.82289,2442.7,2442.4,0.40932]
[1726794929199,0.82289,2442.7,2442.5,0.40931]
[1726794929398,0.82289,2442.7,2442.4,0.40932]
[1726794929593,0.82289,2442.7,2442.5,0.40931]
[1726794931191,0.82289,2442.7,2442.2,0.8299]
[1726794931192,0.4136,2442.7,2442.4,0.40931]
[1726794931400,0.40929,2442.6,2442.4,0.40931]
[1726794932895,0.82289,2442.7,2442.5,0.4093]
[1726794933694,3.2078,2442.8,2442.2,4.0377]
[1726794934006,3.2078,2443.5,2443.1,0.4092]
[1726794934198,1.18236,2443.4,2443.1,0.40921]
[1726794934999,1.18236,2443.4,2442.7,2.2910567]
[1726794935000,0.385,2443.4,2443.2,3.19]
[1726794935299,3.2078,2444.2,2443.3,7.4633567]
[1726794935499,4.23037,2444.2,2443.4,4.6554567]
[1726794935808,0.40908,2443.9,2443.5,0.40914]
[1726794935991,0.40908,2443.9,2443.5,0.40913]
[1726794935992,0.4053,2443.8,2443.5,0.40913]
[1726794936190,0.4053,2443.8,2443.4,0.3999]
[1726794936393,0.4053,2443.8,2443.5,0.40914]
[1726794936904,0.81439,2443.8,2443.4,0.80905]
[1726794937198,0.4053,2443.8,2443.5,0.40913]
[1726794937399,0.8144,2443.8,2443.4,0.3999]
[1726794937601,0.7951,2443.8,2443.5,0.40913]
[1726794938006,0.7951,2443.8,2443.4,0.3999]
[1726794938303,0.7951,2443.8,2443.5,0.40914]
[1726794938698,0.7951,2443.8,2443.6,0.40912]
[1726794938898,3.2078,2443.9,2443.6,3.19]
[1726794939097,3.2078,2443.9,2443.8,0.40909]
[1726794939299,3.2078,2444.2,2443.9,0.40907]
[1726794939501,3.61683,2444.2,2443.8,0.81418]
[1726794939809,3.2078,2444.2,2443.9,0.40907]
[1726794940005,3.2078,2444.2,2443.8,0.81418]
[1726794940197,3.61683,2444.2,2443.8,0.81418]
[1726794940403,3.2078,2444.2,2443.9,0.40906]
[1726794941105,3.2078,2444.2,2443.8,0.4051]
[1726794941314,3.2078,2444.2,2443.9,0.40906]
[1726794941803,3.2078,2444.2,2443.8,0.4051]
[1726794942010,0.3897,2444.3,2444.2,0.40902]
[1726794942309,4.0063,2444.5,2444.4,0.40899]
[1726794942513,4.0063,2444.5,2444.2,0.40902]
[1726794942514,3.5976,2444.5,2444.2,0.40902]
[1726794942810,0.40894,2444.8,2444.4,0.40898]
[1726794943101,0.392,2444.8,2444.4,0.40898]
[1726794943310,0.40895,2444.7,2444.3,0.7997]
[1726794943700,3.61675,2444.7,2444.4,0.40899]
[1726794945204,0.40895,2444.7,2444.4,0.40899]
[1726794945404,0.392,2444.8,2444.6,0.40895]
[1726794945608,0.80093,2444.8,2444.5,0.40897]
[1726794946407,0.80093,2444.8,2444.4,0.3936]
[1726794946408,0.392,2444.8,2444.4,0.3936]
[1726794946705,1.21742,2444.9,2444.7,0.40893]
[1726794946706,0.4126,2444.9,2444.7,0.40893]
[1726794946906,0.4126,2444.9,2444.7,0.40894]
[1726794947508,0.4126,2444.9,2444.4,3.5836]
[1726794948108,0.4126,2444.9,2444.7,0.40893]
[1726794950308,0.4126,2444.9,2444.3,0.409]
[1726794950309,4.0904,2444.8,2444.3,0.409]
[1726794950614,3.2078,2444.6,2444.5,0.40897]
[1726794952212,3.2078,2444.6,2444.2,6.3978]
[1726794952405,3.2078,2444.6,2444.2,3.2078]
[1726794952406,6.3978,2444.6,2444.2,3.2078]
[1726794952603,6.80676,2444.6,2444.3,0.40901]
[1726794952803,3.2078,2444.6,2444.2,3.19]
[1726794953106,3.2078,2444.6,2444.5,0.40897]
[1726794953308,0.4126,2444.9,2444.7,0.40893]
[1726794953519,0.4126,2444.9,2444.4,3.19]
[1726794953520,0.4126,2444.9,2444.8,0.40892]
[1726794954705,0.4126,2444.9,2444.7,0.40893]
[1726794954911,3.6204,2444.9,2444.5,0.4017]
[1726794955107,4.02932,2444.9,2444.6,0.40895]
[1726794955302,4.02932,2444.9,2444.5,0.4017]
[1726794955303,0.40893,2444.8,2444.5,0.4017]
[1726794955509,3.6204,2444.9,2444.5,0.4017]
[1726794955703,4.02931,2444.9,2444.7,0.40894]
[1726794955908,3.6204,2444.9,2444.7,0.40894]
[1726794956219,3.6204,2444.9,2444.7,0.40893]
[1726794957308,0.4126,2444.9,2444.8,0.40892]
[1726794957612,0.405,2445.0,2444.9,0.40891]
[1726794957807,5.16897,2445.7,2444.5,4.0342]
[1726794957808,0.3911,2445.3,2445.1,0.40886]
[1726794958310,0.40883,2445.4,2445.1,0.40886]
[1726794958509,3.61661,2445.5,2445.2,0.82275]
[1726794958717,0.40883,2445.4,2445.2,0.4139]
[1726794959013,3.2078,2445.5,2445.2,0.82276]
[1726794959014,3.61662,2445.5,2445.2,0.82276]
[1726794959211,3.61662,2445.5,2444.9,0.4085]
[1726794959212,3.2078,2445.5,2444.9,0.4085]
[1726794959517,0.82463,2445.4,2445.1,0.40886]
[1726794959713,0.40884,2445.3,2445.1,0.40886]
[1726794959916,0.82464,2445.4,2445.1,0.40886]
[1726794960222,3.2078,2445.5,2445.0,3.19]
[1726794960513,3.61661,2445.5,2445.2,0.40885]
[1726794960817,0.40882,2445.4,2445.2,0.40885]
[1726794961112,3.61661,2445.5,2445.2,0.40884]
[1726794961413,3.2078,2445.5,2445.4,0.40882]
[1726794961620,3.61661,2445.5,2445.3,0.40884]
[1726794961810,3.2078,2445.5,2445.3,0.40884]
[1726794962008,3.2078,2445.5,2445.2,0.40885]
[1726794962009,3.61661,2445.5,2445.2,0.40885]
[1726794962207,0.40886,2445.2,2444.9,0.4089]
[1726794962908,0.81927,2445.1,2444.9,0.4089]
[1726794963112,0.4104,2445.1,2444.9,0.4089]
[1726794963313,3.6004,2445.1,2444.6,4.0332]
[1726794963511,0.4089,2445.0,2444.8,0.40892]
[1726794963718,3.2078,2444.9,2444.2,6.3978]
[1726794963913,0.40893,2444.8,2444.2,3.2078]
[1726794964117,0.40893,2444.8,2444.2,3.19]
[1726794964319,0.40893,2444.8,2444.5,0.40896]
[1726794965321,3.61672,2444.9,2444.6,0.40895]
[1726794965820,3.2078,2444.9,2444.6,0.40895]
[1726794966215,3.61671,2444.9,2444.6,0.40895]
[1726794966421,0.4104,2445.1,2444.5,0.3854]
[1726794966422,0.4104,2445.1,2444.7,0.40894]
[1726794966616,0.40889,2445.0,2444.7,0.40894]
[1726794967321,0.40889,2445.0,2444.7,0.40893]
[1726794968123,0.81928,2445.1,2444.8,0.40892]
[1726794969029,0.40896,2444.6,2444.5,0.3854]
[1726794969320,3.61677,2444.6,2444.3,0.409]
[1726794969528,0.7976,2444.5,2444.3,0.409]
[1726794969719,0.7976,2444.5,2444.4,0.40899]
[1726794970324,0.7976,2444.5,2444.2,0.40901]
[1726794970518,3.2078,2444.3,2443.9,3.2078]
[1726794970925,1.2078,2444.5,2444.3,0.40901]
[1726794971127,1.61678,2444.5,2444.2,0.40901]
[1726794971721,0.40899,2444.4,2444.1,0.80893]
[1726794972422,1.2078,2444.5,2444.0,0.83616]
[1726794972923,1.2078,2444.5,2443.8,0.3999]
[1726794973114,1.2078,2444.5,2444.0,0.40906]
[1726794973432,1.2078,2444.5,2443.8,0.8004]
[1726794973433,0.40903,2444.2,2443.9,0.40907]
[1726794973625,0.40902,2444.3,2444.0,0.40906]
[1726794973927,4.3978,2444.5,2444.0,0.40906]
[1726794974126,0.40903,2444.2,2443.9,0.40907]
[1726794974320,3.61682,2444.3,2444.0,0.40905]
[1726794974514,3.2078,2444.3,2443.8,0.8004]
[1726794974718,3.2078,2444.3,2444.1,0.40903]
[1726794974921,3.2078,2444.3,2444.2,0.40902]
[1726794975330,3.2078,2444.3,2444.1,0.40903]
[1726794976024,3.2078,2444.3,2444.2,0.40902]
[1726794976222,4.27425815,2444.8,2444.5,0.40896]
[1726794976425,0.7914,2444.8,2444.4,3.19]
[1726794976625,0.7914,2444.8,2444.6,0.40895]
[1726794977028,0.7914,2444.8,2444.5,0.4201]
[1726794977029,1.20032,2444.8,2444.5,0.82906]
[1726794977325,1.20034,2444.8,2444.5,0.82907]
[1726794977626,1.20034,2444.8,2444.6,0.40896]
[1726794977627,0.7914,2444.8,2444.6,0.40896]
[1726794977827,0.7914,2444.8,2444.5,0.4201]
[1726794978130,1.20034,2444.8,2444.5,0.82907]
[1726794978325,0.40894,2444.7,2444.5,0.82907]
[1726794978531,0.40894,2444.7,2444.5,0.40897]
[1726794978729,3.19,2444.6,2444.1,0.4201]
[1726794979030,0.40897,2444.5,2444.2,0.40902]
[1726794979233,0.80747,2444.5,2444.3,0.40901]
[1726794979429,0.409,2444.4,2444.1,0.4201]
[1726794979832,3.6063,2444.5,2444.2,0.40902]
[1726794979833,4.01528,2444.5,2444.2,0.40902]
[1726794980027,4.01528,2444.5,2444.3,0.40901]
[1726794980330,0.3985,2444.5,2444.4,0.40899]
[1726794980826,1.20033,2444.8,2444.2,3.19]
[1726794981029,0.4052,2444.8,2444.2,3.5986]
[1726794981227,0.40895,2444.7,2444.4,0.40898]
[1726794981423,4.61755,2444.8,2444.1,0.4201]
[1726794981828,6.3978,2444.6,2444.1,0.4201]
[1726794982026,0.40902,2444.3,2444.0,0.40905]
[1726794982229,0.3925,2444.2,2444.0,0.40905]
[1726794982425,0.8014,2444.2,2443.9,0.4095]
[1726794982626,0.8014,2444.2,2444.1,0.40904]
[1726794983128,0.8014,2444.2,2443.9,3.6173]
[1726794983129,0.3889,2444.5,2444.0,3.19]
[1726794983334,0.3889,2444.5,2444.3,0.409]
[1726794984231,4.41817,2444.6,2444.4,0.40899]
[1726794984621,0.409,2444.4,2443.9,3.6173]
[1726794984828,7.1992,2444.6,2444.1,0.40903]
[1726794985127,0.409,2444.4,2444.1,0.40903]
[1726794988436,0.8014,2444.6,2444.0,3.19]
[1726794988734,0.8014,2444.6,2444.3,0.409]
[1726794988735,1.21036,2444.6,2444.3,0.409]
[1726794989135,3.89392815,2444.8,2444.4,3.19]
[1726794989136,3.47912815,2444.8,2444.4,3.19]
[1726794989433,3.2078,2444.9,2444.6,3.19]
[1726794989635,3.2078,2444.9,2444.8,0.40892]
[1726794991331,3.2078,2444.9,2444.8,4.49932]
[1726794991532,3.2078,2444.9,2444.8,7.68932]
[1726794991833,3.2078,2444.9,2444.8,3.59892]
[1726794992346,3.2078,2444.9,2444.8,0.40892]
[1726794993430,3.47912815,2445.3,2444.8,7.2804]
[1726794993740,3.2078,2445.3,2445.1,0.40887]
[1726794994135,3.61664,2445.3,2445.0,0.40888]
[1726794994438,3.2078,2445.3,2445.0,0.40888]
[1726794994827,3.61664,2445.3,2445.0,0.40888]
[1726794995028,0.40887,2445.2,2444.9,0.4089]
[1726794995224,0.40887,2445.2,2444.8,0.40891]
[1726794995838,0.40887,2445.2,2444.9,0.4089]
[1726794996139,3.61665,2445.3,2444.9,0.4089]
[1726794996342,3.61665,2445.3,2445.0,0.40889]
[1726794996931,3.2078,2445.3,2445.1,0.40887]
[1726794997235,0.7893,2445.4,2445.2,0.40886]
[1726794997636,0.7893,2445.4,2445.1,0.4245]
[1726794997938,3.2078,2445.6,2445.4,0.40882]
[1726794998130,3.2078,2445.6,2445.5,0.40881]
[1726794998335,3.2078,2445.6,2445.5,3.59881]
[1726794998532,3.2078,2445.6,2445.5,0.40881]
[1726794999833,4.02234,2446.0,2445.7,0.40877]
[1726795000033,0.40875,2445.9,2445.6,0.40878]
[1726795001034,0.40878,2445.7,2445.4,4.77814662]
[1726795001246,0.40877,2445.8,2445.5,0.40881]
[1726795002046,0.40875,2445.9,2445.6,0.40879]
[1726795002543,0.40875,2445.9,2445.3,3.19]
[1726795002544,7.2223,2446.0,2445.5,0.4088]
[1726795002842,3.19,2445.6,2445.2,0.81055]
[1726795003046,3.2078,2445.4,2445.2,0.40885]
[1726795003342,0.40886,2445.2,2444.8,3.6299]
[1726795003544,0.40886,2445.2,2444.9,0.4089]
[1726795004042,0.40886,2445.2,2444.8,0.4221]
[1726795004043,0.40885,2445.3,2445.0,0.40888]
[1726795004238,3.2078,2445.4,2445.0,0.40888]
[1726795004437,0.40885,2445.3,2445.1,0.40887]
[1726795004648,3.61664,2445.4,2445.1,0.40887]
[1726795004939,3.2078,2445.4,2445.0,3.19]
[1726795005143,3.2078,2445.4,2445.3,0.40884]
[1726795006647,3.2078,2445.4,2445.3,0.83384]
[1726795009142,0.8479,2445.5,2445.3,0.83384]
[1726795009849,1.25672,2445.5,2445.2,0.40885]
[1726795010048,1.25672,2445.5,2445.3,0.40884]
[1726795010347,0.8479,2445.5,2444.9,0.4121]
[1726795010645,0.40885,2445.3,2445.0,0.40889]
[1726795011437,0.40885,2445.3,2445.1,0.40887]
[1726795012159,0.40886,2445.2,2445.0,0.40889]
[1726795012646,3.61665,2445.3,2445.0,0.40889]
[1726795013246,3.2078,2445.3,2444.8,3.6061]
[1726795013439,0.8479,2445.5,2444.8,3.6061]
[1726795013440,0.8479,2445.5,2445.2,3.19]
[1726795013739,0.8479,2445.5,2445.2,0.40885]
[1726795013740,1.25672,2445.5,2445.2,0.40885]
[1726795013949,0.8479,2445.5,2445.3,0.40884]
[1726795014148,1.25671,2445.5,2445.2,0.40885]
[1726795014445,0.8479,2445.5,2445.1,0.3861]
[1726795015142,0.40883,2445.4,2445.1,0.79496]
[1726795015641,0.40883,2445.4,2445.1,0.79497]
[1726795016036,0.40884,2445.3,2445.1,0.79497]
[1726795016245,0.40883,2445.4,2444.8,3.6061]
[1726795016445,0.40883,2445.4,2445.2,0.40886]
[1726795016636,3.61663,2445.4,2445.2,0.40886]
[1726795017038,0.40884,2445.3,2445.1,0.40887]
[1726795017947,0.40886,2445.2,2445.0,0.40888]
[1726795018147,0.40885,2445.3,2445.0,0.40888]
[1726795018337,0.4044,2445.2,2445.0,0.40888]
[1726795018644,0.4044,2445.2,2445.0,0.40889]
[1726795019842,0.4044,2445.2,2444.9,0.4132]
[1726795020048,0.4044,2445.2,2445.0,0.40889]
[1726795020245,0.81327,2445.2,2445.0,0.40889]
[1726795020452,0.4044,2445.2,2445.0,0.40889]
[1726795021352,0.4044,2445.2,2445.1,0.40887]
[1726795021551,0.40885,2445.3,2445.1,0.40887]
[1726795021745,3.61664,2445.4,2445.1,0.40887]
[1726795021946,3.61664,2445.4,2444.9,0.4132]
[1726795022141,1.25,2445.5,2445.0,3.19]
[1726795022345,0.8479,2445.5,2445.3,0.40882]
[1726795022552,0.8479,2445.5,2444.9,0.4132]
[1726795022553,0.4262,2445.5,2445.4,0.40882]
[1726795023557,0.4262,2445.5,2445.3,0.8133]
[1726795023558,0.40876,2445.8,2445.3,0.8133]
[1726795023851,0.81776,2445.8,2445.5,0.4088]
[1726795024655,0.4088,2445.6,2445.3,1.22213]
[1726795024958,0.4088,2445.6,2445.3,0.83103]
[1726795025151,0.4228,2445.5,2445.3,0.83103]
[1726795025853,0.83161,2445.5,2445.3,0.4222]
[1726795026059,0.4228,2445.5,2445.3,0.4222]
[1726795026243,0.4228,2445.5,2445.3,0.83103]
[1726795028050,0.81776,2445.8,2445.3,0.4222]
[1726795028253,0.409,2445.8,2445.6,0.40878]
[1726795028552,0.409,2445.8,2445.3,0.4222]
[1726795028749,0.409,2445.8,2445.7,0.40877]
[1726795030048,0.409,2445.8,2445.6,0.40878]
[1726795030852,0.81777,2445.8,2445.6,0.40878]
[1726795031051,0.81777,2445.8,2445.7,0.40877]
[1726795031052,0.409,2445.8,2445.7,0.40877]
[1726795032852,0.4123,2445.9,2445.4,3.19]
[1726795033250,0.4123,2445.9,2445.7,0.40876]
[1726795034157,0.82104,2445.9,2445.7,0.40876]
[1726795034367,0.4123,2445.9,2445.7,0.40876]
[1726795034552,0.4123,2445.9,2445.8,0.40876]
[1726795035361,3.2078,2446.0,2445.4,6.3978]
[1726795035961,3.2078,2446.0,2445.9,0.40874]
[1726795036353,3.2078,2446.1,2445.9,0.40874]
[1726795036971,3.2078,2446.1,2445.7,1.2225]
[1726795037263,3.2078,2446.1,2446.0,0.40872]
[1726795040366,0.81549,2446.2,2446.0,0.40872]
[1726795041058,0.40871,2446.1,2445.9,0.40873]
[1726795041252,0.4068,2446.2,2445.9,0.40873]
[1726795041457,0.8155,2446.2,2446.0,0.40871]
[1726795042864,0.4068,2446.2,2446.0,0.40872]
[1726795043363,0.81549,2446.2,2446.0,0.40872]
[1726795043754,0.4068,2446.2,2446.1,0.40871]
[1726795043949,0.4136,2446.3,2445.8,3.19]
[1726795044154,0.4136,2446.3,2446.2,0.40869]
[1726795044354,3.2078,2446.4,2446.2,0.40869]
[1726795044562,3.2078,2446.4,2446.3,0.40867]
[1726795044754,3.2078,2446.4,2446.2,0.40868]
[1726795044950,3.61646,2446.4,2446.2,0.40868]
[1726795045167,3.61646,2446.4,2446.1,0.397]
[1726795045168,3.2078,2446.4,2446.1,0.397]
[1726795045361,3.61646,2446.4,2446.2,0.40868]
[1726795046160,3.2078,2446.4,2446.3,0.40867]
[1726795046866,0.79955,2446.5,2446.3,0.40867]
[1726795047662,0.3909,2446.5,2446.3,0.40867]
[1726795048368,0.79954,2446.5,2446.2,0.81008]
[1726795049363,0.82343,2446.6,2446.3,0.40867]
[1726795049673,0.40864,2446.5,2446.2,1.20338]
[1726795049872,0.4148,2446.6,2446.2,0.7947]
[1726795050170,0.40864,2446.5,2446.2,1.20338]
[1726795050357,0.82343,2446.6,2446.3,0.40867]
[1726795050971,0.40864,2446.5,2446.3,0.40867]
[1726795051769,0.40863,2446.6,2446.3,0.40867]
[1726795051963,3.5993,2446.7,2446.2,0.4014]
[1726795052163,0.40863,2446.6,2446.3,0.40866]
[1726795052360,3.5993,2446.7,2446.2,3.5914]
[1726795052559,3.5993,2446.7,2446.6,0.40862]
[1726795052763,3.2078,2446.7,2446.6,0.40862]
[1726795052969,3.2078,2446.7,2446.6,3.59862]
[1726795053165,3.2078,2446.7,2446.6,7.68582]
[1726795053369,0.3915,2447.0,2446.6,7.2772]
[1726795053567,0.3915,2447.0,2446.9,0.40857]
[1726795053765,0.40854,2447.1,2446.8,3.19]
[1726795053964,0.82593,2447.2,2446.9,0.81237]
[1726795054164,0.82593,2447.2,2447.0,0.40855]
[1726795054165,0.4174,2447.2,2447.0,0.40855]
[1726795054364,0.82593,2447.2,2446.9,0.4038]
[1726795054569,0.82593,2447.2,2446.9,0.81236]
[1726795054766,0.40856,2447.0,2446.9,0.4038]
[1726795054968,6.3978,2447.0,2446.6,0.40862]
[1726795055172,1.23738,2446.9,2446.4,4.4453]
[1726795055368,0.8288,2446.9,2446.4,4.4453]
[1726795055573,0.8288,2446.9,2446.7,0.4086]
[1726795055769,1.23738,2446.9,2446.7,0.40861]
[1726795056671,0.8288,2446.9,2446.7,0.40861]
[1726795057073,3.61636,2447.0,2446.7,0.40861]
[1726795057264,3.61636,2447.0,2446.4,4.4453]
[1726795057265,3.2078,2447.0,2446.8,0.4153]
[1726795057472,3.61636,2447.0,2446.8,0.4153]
[1726795058170,0.406,2447.1,2446.9,0.40857]
[1726795059266,0.40858,2446.9,2446.6,0.40861]
[1726795059470,0.40858,2446.9,2446.5,0.3892]
[1726795059969,3.6061,2447.0,2446.7,0.4086]
[1726795059970,4.01467,2447.0,2446.7,0.4086]
[1726795060577,0.40858,2446.9,2446.6,0.40862]
[1726795060786,0.40858,2446.9,2446.7,0.4086]
[1726795060975,0.40858,2446.9,2446.6,0.40861]
[1726795061171,3.6061,2447.0,2446.6,0.40861]
[1726795061374,3.6061,2447.0,2446.7,0.4086]
[1726795061375,0.40858,2446.9,2446.7,0.4086]
[1726795061572,0.40858,2446.9,2446.5,0.3892]
[1726795061777,0.40858,2446.9,2446.7,0.40861]
[1726795061985,0.40858,2446.9,2446.6,0.40861]
[1726795062671,0.40858,2446.9,2446.5,0.3892]
[1726795062980,0.40858,2446.9,2446.6,0.40861]
[1726795063676,0.4086,2446.8,2446.5,0.3892]
[1726795063980,0.40858,2446.9,2446.6,0.40862]
[1726795064181,0.40858,2446.9,2446.7,0.4086]
[1726795064572,4.01467,2447.0,2446.7,0.4086]
[1726795064772,0.40857,2446.9,2446.7,0.4086]
[1726795064984,4.01466,2447.0,2446.7,0.4086]
[1726795067481,4.01466,2447.0,2446.8,0.40859]
[1726795067876,3.2078,2447.0,2446.8,0.40859]
[1726795068072,0.406,2447.1,2447.0,0.40856]
[1726795068279,0.4174,2447.2,2447.1,0.40854]
[1726795068478,3.2078,2447.3,2447.1,3.19]
[1726795068680,3.2078,2447.3,2447.2,4.88962]
[1726795069187,3.6017,2447.6,2447.5,0.40847]
[1726795069376,3.2078,2447.6,2447.5,0.40847]
[1726795069876,3.2078,2447.6,2447.5,0.83437]
[1726795070585,3.2078,2448.0,2447.6,0.40845]
[1726795070781,0.40845,2447.7,2447.5,0.4259]
[1726795071085,0.40845,2447.7,2447.3,0.4085]
[1726795071086,0.3881,2447.6,2447.3,0.4085]
[1726795071282,0.3881,2447.6,2447.4,0.40848]
[1726795071975,0.3881,2447.6,2447.5,0.40847]
[1726795072575,3.6343,2448.0,2447.6,0.40844]
[1726795072776,4.0427,2448.0,2447.6,3.19]
[1726795072975,3.6343,2448.0,2447.7,0.4173]
[1726795073183,4.0427,2448.0,2447.7,0.82573]
[1726795073384,3.6343,2448.0,2447.9,0.40841]
[1726795073781,3.6343,2448.0,2447.8,0.40841]
[1726795073975,3.6343,2448.0,2447.9,0.40841]
[1726795074185,3.6343,2448.0,2447.8,0.40841]
[1726795074489,3.6343,2448.0,2447.8,0.40842]
[1726795075085,3.6343,2448.0,2447.5,0.4103]
[1726795075086,0.06721529,2447.9,2447.5,0.4103]
[1726795075487,0.40843,2447.8,2447.5,0.81877]
[1726795076287,0.40842,2447.9,2447.6,0.40845]
[1726795076782,0.47563972,2447.8,2447.5,0.81876]
[1726795076982,0.40842,2447.8,2447.5,0.81876]
[1726795077887,0.4045,2447.7,2447.5,0.81876]
[1726795079697,0.4045,2447.7,2447.5,0.4103]
[1726795079885,0.40841,2447.9,2447.6,0.40845]
[1726795080188,4.0459,2448.0,2447.6,3.19]
[1726795080379,0.06723657,2447.9,2447.6,3.19]
[1726795080582,4.0459,2448.0,2447.9,0.40841]
[1726795080789,3.2750385,2448.0,2447.9,0.40841]
[1726795080989,3.2078,2448.0,2447.9,4.49321]
[1726795081188,3.2078,2448.0,2447.9,5.29251]
[1726795081782,3.2078,2448.0,2447.9,0.7993]
[1726795082098,3.2078,2448.0,2447.9,5.29251]
[1726795083193,3.2078,2448.0,2447.9,4.88161]
[1726795083391,3.2078,2448.0,2447.9,0.3884]
[1726795083605,3.61619,2448.0,2447.7,0.40843]
[1726795083787,3.2078,2448.0,2447.8,0.40842]
[1726795083984,3.2078,2448.0,2447.6,0.8045]
[1726795084290,0.40841,2447.9,2447.6,1.21294]
[1726795084482,0.3873,2447.8,2447.7,0.40844]
[1726795084693,0.79573,2447.8,2447.6,0.4162]
[1726795085093,0.79574,2447.8,2447.5,0.81877]
[1726795085486,0.40844,2447.7,2447.4,0.40848]
[1726795085790,0.4042,2447.6,2447.4,0.40848]
[1726795085981,0.79573,2447.8,2447.5,0.40847]
[1726795086187,0.3873,2447.8,2447.5,3.19]
[1726795086382,0.3976,2447.9,2447.7,0.40844]
[1726795086690,0.3976,2447.9,2447.8,0.402]
[1726795087090,0.3976,2447.9,2447.8,0.81042]
[1726795087489,3.5951,2448.0,2447.8,0.81042]
[1726795088992,3.5951,2448.0,2447.8,0.402]
[1726795089194,4.00349,2448.0,2447.8,0.402]
[1726795089897,3.5951,2448.0,2447.8,0.81042]
[1726795090093,4.00349,2448.0,2447.8,0.402]
[1726795090292,4.00349,2448.0,2447.1,3.19]
[1726795090293,10.8699,2448.0,2447.1,3.19]
[1726795090592,3.5951,2448.0,2447.6,3.19]
[1726795090796,3.2078,2448.0,2447.8,3.19]
[1726795090986,3.2078,2448.0,2447.9,0.40841]
[1726795091294,3.2078,2448.0,2447.9,0.79341]
[1726795091491,3.2078,2448.0,2447.9,4.87821]
[1726795092893,3.2078,2448.0,2447.9,4.4698]
[1726795093087,3.2078,2448.0,2447.7,0.3959]
[1726795093595,3.6162,2448.0,2447.7,0.80434]
[1726795094701,0.40841,2447.9,2447.7,0.3959]
[1726795094898,3.6162,2448.0,2447.7,0.80434]
[1726795095301,3.6162,2448.0,2447.8,0.40842]
[1726795095490,3.6162,2448.0,2447.7,0.80433]
[1726795096195,3.2078,2448.0,2447.8,0.40842]
[1726795096383,3.61619,2448.0,2447.8,0.40842]
[1726795096888,3.61619,2448.0,2447.7,0.80433]
[1726795097587,3.2078,2448.0,2447.7,0.80434]
[1726795097791,3.6162,2448.0,2447.8,0.40842]
[1726795098100,3.6162,2448.0,2447.7,0.3959]
[1726795098101,3.6162,2448.0,2447.7,0.80433]
[1726795098293,3.2078,2448.0,2447.8,0.40842]
[1726795098597,3.61619,2448.0,2447.8,0.40842]
[1726795102209,3.2078,2448.0,2447.8,0.40842]
[1726795102495,3.61619,2448.0,2447.8,0.40842]